[Event "*** Titled Tuesday Blitz"]
[Site "Chess.com"]
[Date "2021.03.16"]
[Round "7"]
[White "UCantHandleDenker"]
[Black "ChessQueen"]
[Result "0-1"]
[WhiteElo "2515"]
[BlackElo "2718"]
[TimeControl "180+1"]
[EndTime "11:19:10 PDT"]
[Termination "ChessQueen won by resignation"]

1. Nf3 {[%clk 0:03:00.9]} 1... Nf6 {[%clk 0:02:59.5]} 2. d3 {[%clk 0:03:01.3]}
2... d5 {[%clk 0:02:57.5]} 3. g3 {[%clk 0:03:01.9]} 3... c5 {[%clk 0:02:57.4]}
4. Bg2 {[%clk 0:03:02.2]} 4... Nc6 {[%clk 0:02:57.7]} 5. O-O {[%clk 0:03:02.8]}
5... e5 {[%clk 0:02:56.9]} 6. Nbd2 {[%clk 0:03:02.7]} 6... Be7 {[%clk
0:02:56.3]} 7. e4 {[%clk 0:03:03.2]} 7... dxe4 {[%clk 0:02:56.9]} 8. dxe4 {[%clk
0:03:02.9]} 8... O-O {[%clk 0:02:55.9]} 9. c3 {[%clk 0:03:03]} 9... Qc7 {[%clk
0:02:55.6]} 10. a4 {[%clk 0:03:02.3]} 10... Be6 {[%clk 0:02:52.5]} 11. Qe2
{[%clk 0:02:56.9]} 11... h6 {[%clk 0:02:49.7]} 12. Nh4 {[%clk 0:02:55.2]} 12...
Rad8 {[%clk 0:02:40.5]} 13. Nf5 {[%clk 0:02:40.7]} 13... Bxf5 {[%clk 0:02:36.9]}
14. exf5 {[%clk 0:02:39.8]} 14... Na5 {[%clk 0:02:31]} 15. Nc4 {[%clk 0:02:27]}
15... Nxc4 {[%clk 0:02:07.7]} 16. Qxc4 {[%clk 0:02:25.8]} 16... Qd7 {[%clk
0:02:04.3]} 17. Be3 {[%clk 0:02:20.8]} 17... b6 {[%clk 0:01:58.5]} 18. Be4
{[%clk 0:02:04.4]} 18... Nxe4 {[%clk 0:01:55.3]} 19. Qxe4 {[%clk 0:02:03]} 19...
Qd5 {[%clk 0:01:53.8]} 20. f3 {[%clk 0:01:48.6]} 20... c4 {[%clk 0:01:43.5]} 21.
Qxd5 {[%clk 0:01:06.4]} 21... Rxd5 {[%clk 0:01:43.3]} 22. a5 {[%clk 0:01:06.8]}
22... bxa5 {[%clk 0:01:30]} 23. Bxa7 {[%clk 0:01:05.1]} 23... Rb5 {[%clk
0:01:28.9]} 24. Rf2 {[%clk 0:01:01.8]} 24... Rd8 {[%clk 0:01:24]} 25. Ra4 {[%clk
0:00:57.5]} 25... Rd7 {[%clk 0:01:13]} 26. Be3 {[%clk 0:00:56.4]} 26... Rd3
{[%clk 0:01:11.1]} 27. Ba7 {[%clk 0:00:56]} 27... Bc5 {[%clk 0:00:35.4]} 28.
Bxc5 {[%clk 0:00:55.3]} 28... Rxc5 {[%clk 0:00:36.3]} 29. Kg2 {[%clk 0:00:53.9]}
29... f6 {[%clk 0:00:36.5]} 30. Re2 {[%clk 0:00:43.7]} 30... Kf7 {[%clk
0:00:33.5]} 31. g4 {[%clk 0:00:41.6]} 31... Ke7 {[%clk 0:00:32.4]} 32. Kg3
{[%clk 0:00:38.3]} 32... Kd6 {[%clk 0:00:32.4]} 33. Re4 {[%clk 0:00:34.1]} 33...
Kd5 {[%clk 0:00:30.4]} 34. Ra2 {[%clk 0:00:26]} 34... Rd2 {[%clk 0:00:25.3]} 35.
h3 {[%clk 0:00:23.3]} 35... Kc6 {[%clk 0:00:24.1]} 36. Re1 {[%clk 0:00:19.6]}
36... Rb5 {[%clk 0:00:22.3]} 37. Rb1 {[%clk 0:00:15.5]} 37... Kb6 {[%clk
0:00:21.3]} 38. Ra4 {[%clk 0:00:14.7]} 38... Rdxb2 {[%clk 0:00:14.2]} 39. Rxb2
{[%clk 0:00:13.1]} 39... Rxb2 {[%clk 0:00:15.1]} 40. Rxc4 {[%clk 0:00:13.5]}
40... Rc2 {[%clk 0:00:15.5]} 41. Rc8 {[%clk 0:00:13.2]} 41... a4 {[%clk
0:00:14.5]} 42. Rb8+ {[%clk 0:00:07.5]} 42... Kc5 {[%clk 0:00:13.9]} 43. Ra8
{[%clk 0:00:06.2]} 43... Kb5 {[%clk 0:00:13.1]} 44. Rb8+ {[%clk 0:00:06.6]}
44... Kc5 {[%clk 0:00:13]} 45. Ra8 {[%clk 0:00:06.2]} 45... Ra2 {[%clk
0:00:13.3]} 46. Ra7 {[%clk 0:00:05.8]} 46... a3 {[%clk 0:00:12.3]} 47. Rxg7
{[%clk 0:00:05.9]} 47... Rb2 {[%clk 0:00:11.1]} 48. Ra7 {[%clk 0:00:04.1]} 48...
a2 {[%clk 0:00:11.1]} 49. Kh4 {[%clk 0:00:04]} 49... Kc4 {[%clk 0:00:09.5]} 50.
Kh5 {[%clk 0:00:04.3]} 50... Kb3 {[%clk 0:00:09.6]} 51. Kxh6 {[%clk 0:00:02]}
51... Rh2 {[%clk 0:00:08.5]} 52. Kg6 {[%clk 0:00:02.9]} 52... Rxh3 {[%clk
0:00:08.8]} 53. Rb7+ {[%clk 0:00:03.3]} 53... Kxc3 {[%clk 0:00:08.6]} 54. Ra7
{[%clk 0:00:04.2]} 54... Kb2 {[%clk 0:00:08.8]} 55. Rb7+ {[%clk 0:00:03.9]}
55... Kc2 {[%clk 0:00:09.2]} 56. Rc7+ {[%clk 0:00:03.1]} 56... Kb1 {[%clk
0:00:09]} 57. Rb7+ {[%clk 0:00:03]} 57... Kc1 {[%clk 0:00:08]} 58. Rc7+ {[%clk
0:00:03]} 58... Kd1 {[%clk 0:00:08.4]} 59. Rd7+ {[%clk 0:00:03]} 59... Kc2
{[%clk 0:00:08.3]} 60. Ra7 {[%clk 0:00:03.9]} 60... Kb3 {[%clk 0:00:07.9]} 61.
Kxf6 {[%clk 0:00:04.8]} 61... Rh1 {[%clk 0:00:07.6]} 62. Rb7+ {[%clk 0:00:04.4]}
62... Kc4 {[%clk 0:00:07.6]} 63. Rc7+ {[%clk 0:00:04.4]} 63... Kd5 {[%clk
0:00:08]} 64. Ra7 {[%clk 0:00:05.3]} 64... a1=Q {[%clk 0:00:08.3]} 65. Rxa1
{[%clk 0:00:05.1]} 65... Rxa1 {[%clk 0:00:09.2]} 66. g5 {[%clk 0:00:05.6]} 66...
Ra3 {[%clk 0:00:08.8]} 67. g6 {[%clk 0:00:05.6]} 67... Rxf3 {[%clk 0:00:09]} 68.
g7 {[%clk 0:00:05.8]} 68... Rg3 {[%clk 0:00:09.3]} 69. Kf7 {[%clk 0:00:06]}
69... e4 {[%clk 0:00:09.8]} 70. f6 {[%clk 0:00:06.4]} 70... Ke5 {[%clk
0:00:10.4]} 71. Kf8 {[%clk 0:00:06.9]} 71... Kxf6 {[%clk 0:00:10.1]} 72. g8=Q
{[%clk 0:00:06]} 72... Rxg8+ {[%clk 0:00:09.9]} 73. Kxg8 {[%clk 0:00:06.9]}
73... e3 {[%clk 0:00:10.5]} 74. Kh7 {[%clk 0:00:06.7]} 74... e2 {[%clk
0:00:10.9]} 0-1

[Event "*** Titled Tuesday Blitz"]
[Site "Chess.com"]
[Date "2021.03.16"]
[Round "7"]
[White "canary2016"]
[Black "LubovMarkelova"]
[Result "0-1"]
[WhiteElo "2007"]
[BlackElo "2240"]
[TimeControl "180+1"]
[EndTime "11:19:12 PDT"]
[Termination "LubovMarkelova won by checkmate"]

1. d4 {[%clk 0:02:58.6]} 1... d5 {[%clk 0:02:59.9]} 2. c4 {[%clk 0:02:57.9]}
2... c6 {[%clk 0:02:59]} 3. Nf3 {[%clk 0:02:55.6]} 3... Nf6 {[%clk 0:02:57.5]}
4. g3 {[%clk 0:02:55.4]} 4... Bf5 {[%clk 0:02:55.4]} 5. Bg2 {[%clk 0:02:53.1]}
5... h6 {[%clk 0:02:54]} 6. Nc3 {[%clk 0:02:52.4]} 6... e6 {[%clk 0:02:54]} 7.
O-O {[%clk 0:02:48.9]} 7... Be7 {[%clk 0:02:50.9]} 8. Bf4 {[%clk 0:02:40.2]}
8... Nbd7 {[%clk 0:02:49.1]} 9. Qb3 {[%clk 0:02:36.2]} 9... Qb6 {[%clk
0:02:47.7]} 10. c5 {[%clk 0:02:32.7]} 10... Qxb3 {[%clk 0:02:44.8]} 11. axb3
{[%clk 0:02:32.3]} 11... O-O {[%clk 0:02:42.6]} 12. b4 {[%clk 0:02:32]} 12... a6
{[%clk 0:02:42.4]} 13. Ra2 {[%clk 0:02:24.8]} 13... g5 {[%clk 0:02:36.6]} 14.
Bc7 {[%clk 0:02:18.7]} 14... Rac8 {[%clk 0:02:35.6]} 15. Be5 {[%clk 0:02:10.4]}
15... Ne4 {[%clk 0:02:32.9]} 16. h3 {[%clk 0:01:47.3]} 16... f6 {[%clk 0:02:29]}
17. Bd6 {[%clk 0:01:42.8]} 17... Nxd6 {[%clk 0:02:26.6]} 18. cxd6 {[%clk
0:01:42.7]} 18... Bxd6 {[%clk 0:02:26.8]} 19. Ra4 {[%clk 0:01:20.6]} 19... Nb6
{[%clk 0:02:25]} 20. Ra3 {[%clk 0:01:14.5]} 20... Nc4 {[%clk 0:02:21]} 21. Ra2
{[%clk 0:01:09.8]} 21... Bxb4 {[%clk 0:02:19.9]} 22. g4 {[%clk 0:01:05.6]} 22...
Bg6 {[%clk 0:02:14.8]} 23. Rc1 {[%clk 0:01:02.5]} 23... Kg7 {[%clk 0:02:12.3]}
24. Na4 {[%clk 0:01:00.1]} 24... Be4 {[%clk 0:02:05.5]} 25. b3 {[%clk
0:00:57.4]} 25... Nd6 {[%clk 0:01:47.7]} 26. Nb6 {[%clk 0:00:49.8]} 26... Rce8
{[%clk 0:01:39.9]} 27. Ra4 {[%clk 0:00:48.7]} 27... a5 {[%clk 0:01:34.9]} 28.
Ne1 {[%clk 0:00:42.4]} 28... Bxg2 {[%clk 0:01:32.8]} 29. Kxg2 {[%clk 0:00:41]}
29... Bxe1 {[%clk 0:01:29.2]} 30. Rxe1 {[%clk 0:00:40.6]} 30... Nb5 {[%clk
0:01:25.7]} 31. e3 {[%clk 0:00:38]} 31... e5 {[%clk 0:01:25.6]} 32. dxe5 {[%clk
0:00:33.1]} 32... Rxe5 {[%clk 0:01:21.6]} 33. Rxa5 {[%clk 0:00:31.6]} 33... f5
{[%clk 0:01:18.6]} 34. Nd7 {[%clk 0:00:31]} 34... Rfe8 {[%clk 0:01:16.4]} 35.
Nxe5 {[%clk 0:00:28.1]} 35... Rxe5 {[%clk 0:01:17.3]} 36. gxf5 {[%clk
0:00:28.4]} 36... Rxf5 {[%clk 0:01:15.3]} 37. Rea1 {[%clk 0:00:19.2]} 37... Kg6
{[%clk 0:01:06.4]} 38. Ra8 {[%clk 0:00:18.9]} 38... Rf7 {[%clk 0:01:02.2]} 39.
Rg8+ {[%clk 0:00:18.3]} 39... Kf5 {[%clk 0:01:01.4]} 40. Rh8 {[%clk 0:00:18]}
40... Rf6 {[%clk 0:00:58.1]} 41. Raa8 {[%clk 0:00:17]} 41... Ke4 {[%clk
0:00:57.9]} 42. Rae8+ {[%clk 0:00:15.5]} 42... Kd3 {[%clk 0:00:57.1]} 43. Rh7
{[%clk 0:00:14.5]} 43... Nd6 {[%clk 0:00:56.3]} 44. Rd8 {[%clk 0:00:13]} 44...
Kc3 {[%clk 0:00:55.6]} 45. Rhd7 {[%clk 0:00:11.5]} 45... Ne4 {[%clk 0:00:52.9]}
46. f3 {[%clk 0:00:08.3]} 46... Nc5 {[%clk 0:00:49.6]} 47. Rd6 {[%clk
0:00:05.9]} 47... Rf7 {[%clk 0:00:36.1]} 48. Rxh6 {[%clk 0:00:05.8]} 48... Nxb3
{[%clk 0:00:33.7]} 49. Rg6 {[%clk 0:00:06.1]} 49... Nd2 {[%clk 0:00:31.3]} 50.
Rxg5 {[%clk 0:00:04.5]} 50... Nxf3 {[%clk 0:00:29.6]} 51. Rg3 {[%clk 0:00:04.5]}
51... Ne1+ {[%clk 0:00:29]} 52. Kg1 {[%clk 0:00:03.8]} 52... b5 {[%clk
0:00:28.7]} 53. Rg2 {[%clk 0:00:03.3]} 53... Nf3+ {[%clk 0:00:26.6]} 54. Kh1
{[%clk 0:00:02.9]} 54... Ne5 {[%clk 0:00:25.4]} 55. Re8 {[%clk 0:00:02.9]} 55...
Rf5 {[%clk 0:00:13.6]} 56. Kh2 {[%clk 0:00:03.3]} 56... b4 {[%clk 0:00:12.3]}
57. h4 {[%clk 0:00:03.6]} 57... b3 {[%clk 0:00:10.8]} 58. Rb8 {[%clk 0:00:03.8]}
58... Nc4 {[%clk 0:00:10.5]} 59. h5 {[%clk 0:00:03.8]} 59... Rxh5+ {[%clk
0:00:09.8]} 60. Kg1 {[%clk 0:00:04.2]} 60... b2 {[%clk 0:00:09.8]} 61. Rgxb2
{[%clk 0:00:03.7]} 61... Nxb2 {[%clk 0:00:09.8]} 62. Rb6 {[%clk 0:00:04.2]}
62... Rh6 {[%clk 0:00:08.3]} 63. Kf2 {[%clk 0:00:03.8]} 63... Nc4 {[%clk
0:00:08.1]} 64. Ke2 {[%clk 0:00:03.8]} 64... Nxb6 {[%clk 0:00:07.9]} 65. Kf3
{[%clk 0:00:04.3]} 65... c5 {[%clk 0:00:08.5]} 66. Kf4 {[%clk 0:00:05.2]} 66...
d4 {[%clk 0:00:09.1]} 67. Kf5 {[%clk 0:00:06.1]} 67... dxe3 {[%clk 0:00:08.8]}
68. Kf4 {[%clk 0:00:05.7]} 68... e2 {[%clk 0:00:09.7]} 69. Kf3 {[%clk
0:00:06.6]} 69... e1=Q {[%clk 0:00:09.2]} 70. Kg2 {[%clk 0:00:05.4]} 70... Qe2+
{[%clk 0:00:08.6]} 71. Kg1 {[%clk 0:00:05]} 71... Rg6+ {[%clk 0:00:07.3]} 72.
Kh1 {[%clk 0:00:05.1]} 72... Qh5# {[%clk 0:00:07.1]} 0-1

[Event "*** Titled Tuesday Blitz"]
[Site "Chess.com"]
[Date "2021.03.16"]
[Round "7"]
[White "Sokoloco"]
[Black "enriquetejedor"]
[Result "1-0"]
[WhiteElo "2432"]
[BlackElo "2533"]
[TimeControl "180+1"]
[EndTime "11:19:21 PDT"]
[Termination "Sokoloco won by checkmate"]

1. b3 {[%clk 0:03:00.9]} 1... c6 {[%clk 0:01:56.2]} 2. Bb2 {[%clk 0:03:00.4]}
2... d5 {[%clk 0:01:57]} 3. e3 {[%clk 0:03:00.8]} 3... Nf6 {[%clk 0:01:57.9]} 4.
f4 {[%clk 0:03:01.2]} 4... Bg4 {[%clk 0:01:58.3]} 5. Be2 {[%clk 0:02:56.3]} 5...
Bxe2 {[%clk 0:01:58.8]} 6. Qxe2 {[%clk 0:02:57.2]} 6... g6 {[%clk 0:01:59.7]} 7.
Nf3 {[%clk 0:02:56.7]} 7... Bg7 {[%clk 0:02:00.3]} 8. O-O {[%clk 0:02:57.4]}
8... O-O {[%clk 0:02:00.5]} 9. d3 {[%clk 0:02:57.6]} 9... Nbd7 {[%clk
0:02:00.9]} 10. Nbd2 {[%clk 0:02:58.1]} 10... Re8 {[%clk 0:02:01.2]} 11. Ne5
{[%clk 0:02:58.5]} 11... Nf8 {[%clk 0:01:59.7]} 12. Ndf3 {[%clk 0:02:57.9]}
12... N6d7 {[%clk 0:02:00]} 13. Rab1 {[%clk 0:02:54.1]} 13... f6 {[%clk
0:02:00.2]} 14. Nxd7 {[%clk 0:02:49.7]} 14... Nxd7 {[%clk 0:02:01.1]} 15. e4
{[%clk 0:02:47.1]} 15... dxe4 {[%clk 0:02:00.6]} 16. Qxe4 {[%clk 0:02:46.5]}
16... Nc5 {[%clk 0:01:57.2]} 17. Qc4+ {[%clk 0:02:45.9]} 17... Qd5 {[%clk
0:01:57.3]} 18. Qxd5+ {[%clk 0:02:44.5]} 18... cxd5 {[%clk 0:01:57.5]} 19. Rfe1
{[%clk 0:02:43.7]} 19... Kf7 {[%clk 0:01:56.5]} 20. Re2 {[%clk 0:02:43.5]} 20...
Rac8 {[%clk 0:01:53.6]} 21. Rbe1 {[%clk 0:02:43.5]} 21... a6 {[%clk 0:01:39.6]}
22. Ba3 {[%clk 0:02:42.7]} 22... Bf8 {[%clk 0:01:35.7]} 23. Nd4 {[%clk 0:02:38]}
23... Rc7 {[%clk 0:01:14.4]} 24. Kf2 {[%clk 0:02:32.7]} 24... e6 {[%clk
0:01:02.8]} 25. Kf3 {[%clk 0:02:28.1]} 25... Nxd3 {[%clk 0:01:00.8]} 26. cxd3
{[%clk 0:02:17.3]} 26... Bxa3 {[%clk 0:00:59.8]} 27. Nxe6 {[%clk 0:02:17.3]}
27... Rce7 {[%clk 0:00:59.1]} 28. f5 {[%clk 0:02:09.8]} 28... gxf5 {[%clk
0:00:58.1]} 29. Nd4 {[%clk 0:02:10.3]} 29... Rxe2 {[%clk 0:00:56.1]} 30. Rxe2
{[%clk 0:02:10.3]} 30... Rc8 {[%clk 0:00:56.1]} 31. Nxf5 {[%clk 0:02:06]} 31...
Rc1 {[%clk 0:00:55.9]} 32. Ne3 {[%clk 0:02:00]} 32... d4 {[%clk 0:00:51.6]} 33.
Nf5 {[%clk 0:01:55]} 33... Bc5 {[%clk 0:00:27.6]} 34. Ke4 {[%clk 0:01:54]} 34...
Ba7 {[%clk 0:00:12]} 35. Nxd4 {[%clk 0:01:46.6]} 35... Rc8 {[%clk 0:00:11]} 36.
Nf5 {[%clk 0:01:39.2]} 36... Bc5 {[%clk 0:00:04.7]} 37. d4 {[%clk 0:01:36.9]}
37... Bf8 {[%clk 0:00:03.3]} 38. Kf3 {[%clk 0:01:35]} 38... Rc1 {[%clk
0:00:02.9]} 39. Ne3 {[%clk 0:01:34.1]} 39... Ke6 {[%clk 0:00:01.9]} 40. d5+
{[%clk 0:01:34.1]} 40... Kd6 {[%clk 0:00:01.4]} 41. Rd2 {[%clk 0:01:34.6]} 41...
Rc7 {[%clk 0:00:01.2]} 42. Nc4+ {[%clk 0:01:32.6]} 42... Kd7 {[%clk 0:00:01.6]}
43. Nb6+ {[%clk 0:01:31.9]} 43... Kd6 {[%clk 0:00:01.6]} 44. Nc4+ {[%clk
0:01:32.5]} 44... Kd7 {[%clk 0:00:01.7]} 45. Ke4 {[%clk 0:01:27.3]} 45... b5
{[%clk 0:00:02]} 46. Ne3 {[%clk 0:01:27.7]} 46... Rc1 {[%clk 0:00:01.5]} 47. Nf5
{[%clk 0:01:19.5]} 47... Bc5 {[%clk 0:00:01.6]} 48. Ng3 {[%clk 0:01:13.9]} 48...
Re1+ {[%clk 0:00:01.6]} 49. Kf3 {[%clk 0:01:14.4]} 49... Re3+ {[%clk 0:00:01.5]}
50. Kf4 {[%clk 0:01:14.5]} 50... Re5 {[%clk 0:00:01.8]} 51. Ne4 {[%clk
0:01:13.5]} 51... Be7 {[%clk 0:00:02]} 52. d6 {[%clk 0:01:12.6]} 52... Bd8
{[%clk 0:00:02.5]} 53. g4 {[%clk 0:01:08.9]} 53... a5 {[%clk 0:00:02.6]} 54. g5
{[%clk 0:01:06.8]} 54... Re8 {[%clk 0:00:01.7]} 55. Nxf6+ {[%clk 0:01:06]} 55...
Bxf6 {[%clk 0:00:01.5]} 56. gxf6 {[%clk 0:01:06.9]} 56... Re1 {[%clk 0:00:01.9]}
57. Kg5 {[%clk 0:01:02.7]} 57... Rg1+ {[%clk 0:00:01.5]} 58. Kh5 {[%clk
0:00:56.8]} 58... Rf1 {[%clk 0:00:01.5]} 59. Kg5 {[%clk 0:00:54.9]} 59... Rg1+
{[%clk 0:00:01.9]} 60. Kh6 {[%clk 0:00:55.6]} 60... Rg6+ {[%clk 0:00:01.8]} 61.
Kxh7 {[%clk 0:00:56.2]} 61... Rxf6 {[%clk 0:00:02.7]} 62. h4 {[%clk 0:00:55.1]}
62... Rf1 {[%clk 0:00:01.3]} 63. h5 {[%clk 0:00:54.1]} 63... b4 {[%clk
0:00:01.1]} 64. h6 {[%clk 0:00:53.5]} 64... Rh1 {[%clk 0:00:01.4]} 65. Kg7
{[%clk 0:00:53.7]} 65... Rg1+ {[%clk 0:00:01.7]} 66. Kh8 {[%clk 0:00:53.4]}
66... Rf1 {[%clk 0:00:01.7]} 67. h7 {[%clk 0:00:52.4]} 67... Rg1 {[%clk
0:00:01.3]} 68. Rd5 {[%clk 0:00:48.1]} 68... Rg4 {[%clk 0:00:01.1]} 69. Rxa5
{[%clk 0:00:39.7]} 69... Kxd6 {[%clk 0:00:01.5]} 70. Ra7 {[%clk 0:00:40.4]}
70... Kd5 {[%clk 0:00:01.7]} 71. Rg7 {[%clk 0:00:40.7]} 71... Re4 {[%clk
0:00:01.9]} 72. Kg8 {[%clk 0:00:40.3]} 72... Re8+ {[%clk 0:00:01.9]} 73. Kf7
{[%clk 0:00:40.9]} 73... Rh8 {[%clk 0:00:01.9]} 74. Kg6 {[%clk 0:00:41.5]} 74...
Ra8 {[%clk 0:00:01.5]} 75. Rg8 {[%clk 0:00:41.9]} 75... Rxa2 {[%clk 0:00:01.7]}
76. h8=Q {[%clk 0:00:41.5]} 76... Rg2+ {[%clk 0:00:01.8]} 77. Kf7 {[%clk
0:00:41.9]} 77... Rf2+ {[%clk 0:00:01.8]} 78. Ke8 {[%clk 0:00:41.8]} 78... Rf3
{[%clk 0:00:01.9]} 79. Qh5+ {[%clk 0:00:40.7]} 79... Ke4 {[%clk 0:00:01.8]} 80.
Rg4+ {[%clk 0:00:40.6]} 80... Ke3 {[%clk 0:00:01.8]} 81. Qe5+ {[%clk 0:00:40.8]}
81... Kf2 {[%clk 0:00:01.7]} 82. Qh2+ {[%clk 0:00:40]} 82... Ke3 {[%clk
0:00:01.6]} 83. Qg1+ {[%clk 0:00:40.2]} 83... Kd3 {[%clk 0:00:01.6]} 84. Qd4+
{[%clk 0:00:38.4]} 84... Kc2 {[%clk 0:00:01.6]} 85. Rg2+ {[%clk 0:00:38.8]}
85... Kb1 {[%clk 0:00:01.1]} 86. Qb2# {[%clk 0:00:38.3]} 1-0

[Event "*** Titled Tuesday Blitz"]
[Site "Chess.com"]
[Date "2021.03.16"]
[Round "7"]
[White "Szparu"]
[Black "zverr1"]
[Result "1/2-1/2"]
[WhiteElo "2628"]
[BlackElo "2475"]
[TimeControl "180+1"]
[EndTime "11:20:25 PDT"]
[Termination "Game drawn by agreement"]

1. e4 {[%clk 0:03:00.9]} 1... c5 {[%clk 0:02:58.8]} 2. Nf3 {[%clk 0:02:50.3]}
2... Nc6 {[%clk 0:02:58.7]} 3. Bb5 {[%clk 0:02:46.8]} 3... g6 {[%clk 0:02:57.8]}
4. c3 {[%clk 0:02:44.1]} 4... Bg7 {[%clk 0:02:44.8]} 5. d4 {[%clk 0:02:40.5]}
5... Qa5 {[%clk 0:02:37.1]} 6. Bxc6 {[%clk 0:02:29.1]} 6... dxc6 {[%clk
0:02:38]} 7. O-O {[%clk 0:02:28]} 7... Nf6 {[%clk 0:02:32.5]} 8. Nbd2 {[%clk
0:02:25.3]} 8... cxd4 {[%clk 0:02:31.7]} 9. cxd4 {[%clk 0:02:21.5]} 9... O-O
{[%clk 0:02:31.1]} 10. Nb3 {[%clk 0:02:17.6]} 10... Qc7 {[%clk 0:02:28.3]} 11.
Re1 {[%clk 0:02:12.9]} 11... a5 {[%clk 0:02:24.8]} 12. a4 {[%clk 0:02:09.7]}
12... Qb6 {[%clk 0:02:14.3]} 13. Qc2 {[%clk 0:02:05.5]} 13... Bg4 {[%clk
0:02:08.4]} 14. Ne5 {[%clk 0:02:02.7]} 14... Be6 {[%clk 0:02:04.5]} 15. Nc5
{[%clk 0:02:00.8]} 15... Bc8 {[%clk 0:02:03.3]} 16. Bd2 {[%clk 0:01:56.2]} 16...
Qd8 {[%clk 0:02:00.5]} 17. Bc3 {[%clk 0:01:48.3]} 17... Nd7 {[%clk 0:01:57.5]}
18. Nexd7 {[%clk 0:01:34.6]} 18... Bxd7 {[%clk 0:01:58.4]} 19. Nxb7 {[%clk
0:01:35]} 19... Qb6 {[%clk 0:01:58.7]} 20. Nc5 {[%clk 0:01:35]} 20... Bc8 {[%clk
0:01:58.9]} 21. Rab1 {[%clk 0:01:32.8]} 21... e5 {[%clk 0:01:54.5]} 22. Red1
{[%clk 0:01:23.4]} 22... Bg4 {[%clk 0:01:49.8]} 23. f3 {[%clk 0:01:16.5]} 23...
Be6 {[%clk 0:01:24.8]} 24. Qf2 {[%clk 0:01:09.3]} 24... Bb3 {[%clk 0:01:21.5]}
25. Nxb3 {[%clk 0:00:57.8]} 25... Qxb3 {[%clk 0:01:22.4]} 26. dxe5 {[%clk
0:00:57.5]} 26... Qxa4 {[%clk 0:01:20.7]} 27. Qc5 {[%clk 0:00:46.9]} 27... Qb5
{[%clk 0:01:17.7]} 28. Qxb5 {[%clk 0:00:29.7]} 28... cxb5 {[%clk 0:01:18.6]} 29.
Rd5 {[%clk 0:00:30.1]} 29... b4 {[%clk 0:01:14.4]} 30. Bd2 {[%clk 0:00:27.8]}
30... Rfb8 {[%clk 0:01:08]} 31. b3 {[%clk 0:00:26.5]} 31... Ra6 {[%clk
0:01:04.2]} 32. Ra1 {[%clk 0:00:22.9]} 32... a4 {[%clk 0:01:03]} 33. bxa4 {[%clk
0:00:20.4]} 33... b3 {[%clk 0:01:03.3]} 34. a5 {[%clk 0:00:19.7]} 34... Bf8
{[%clk 0:00:52.6]} 35. Rb1 {[%clk 0:00:17.2]} 35... Bb4 {[%clk 0:00:48.9]} 36.
Bxb4 {[%clk 0:00:06.9]} 36... Rxb4 {[%clk 0:00:49.8]} 37. Rb2 {[%clk 0:00:07.3]}
37... Kf8 {[%clk 0:00:36.4]} 38. Rd3 {[%clk 0:00:06.6]} 38... Rxa5 {[%clk
0:00:36.5]} 39. Rdxb3 {[%clk 0:00:06.3]} 39... Rxb3 {[%clk 0:00:37.4]} 40. Rxb3
{[%clk 0:00:06.7]} 40... Rxe5 {[%clk 0:00:38.3]} 41. Kf2 {[%clk 0:00:07.2]}
41... h5 {[%clk 0:00:38.6]} 42. Ke3 {[%clk 0:00:07.5]} 42... Kg7 {[%clk
0:00:38.4]} 43. Kd4 {[%clk 0:00:07.8]} 43... Ra5 {[%clk 0:00:38.4]} 44. Rb2
{[%clk 0:00:07.8]} 44... Kf6 {[%clk 0:00:37.4]} 45. h4 {[%clk 0:00:07.4]} 45...
Ra1 {[%clk 0:00:36.1]} 46. Rb6+ {[%clk 0:00:07]} 46... Kg7 {[%clk 0:00:36.2]}
47. Ke3 {[%clk 0:00:07.3]} 47... Rh1 {[%clk 0:00:36.2]} 48. g3 {[%clk
0:00:07.7]} 48... Rf1 {[%clk 0:00:36.5]} 49. Kf4 {[%clk 0:00:08.1]} 49... Ra1
{[%clk 0:00:35.5]} 50. Rb7 {[%clk 0:00:08.2]} 50... Kf6 {[%clk 0:00:35]} 51. e5+
{[%clk 0:00:07.8]} 51... Ke6 {[%clk 0:00:35.4]} 52. Kg5 {[%clk 0:00:05.9]} 52...
Rg1 {[%clk 0:00:33.6]} 53. Kf4 {[%clk 0:00:06.1]} 53... Re1 {[%clk 0:00:31.9]}
54. Rb6+ {[%clk 0:00:06.4]} 54... Ke7 {[%clk 0:00:32]} 55. Rf6 {[%clk
0:00:06.1]} 55... Rg1 {[%clk 0:00:27.7]} 56. Rb6 {[%clk 0:00:04.7]} 56... Re1
{[%clk 0:00:27.7]} 57. g4 {[%clk 0:00:04.7]} 57... hxg4 {[%clk 0:00:26.2]} 58.
fxg4 {[%clk 0:00:05.1]} 58... Rf1+ {[%clk 0:00:26.6]} 59. Kg5 {[%clk 0:00:05.3]}
59... Re1 {[%clk 0:00:27.1]} 60. Rb5 {[%clk 0:00:05.7]} 60... Ke6 {[%clk
0:00:26]} 61. h5 {[%clk 0:00:05.8]} 61... gxh5 {[%clk 0:00:26.9]} 62. gxh5
{[%clk 0:00:05.5]} 62... Rg1+ {[%clk 0:00:27.4]} 63. Kh6 {[%clk 0:00:05.7]}
63... Kf5 {[%clk 0:00:26.6]} 64. Rb7 {[%clk 0:00:05.7]} 64... f6 {[%clk
0:00:21.9]} 65. exf6 {[%clk 0:00:04.7]} 65... Kxf6 {[%clk 0:00:22.8]} 66. Rb6+
{[%clk 0:00:04.5]} 66... Kf7 {[%clk 0:00:23.1]} 67. Kh7 {[%clk 0:00:03.6]} 67...
Rg7+ {[%clk 0:00:21.7]} 68. Kh6 {[%clk 0:00:03.6]} 68... Rg1 {[%clk 0:00:22.6]}
69. Rg6 {[%clk 0:00:03.3]} 69... Ra1 {[%clk 0:00:17.7]} 70. Kg5 {[%clk
0:00:03.6]} 70... Rg1+ {[%clk 0:00:16]} 71. Kh6 {[%clk 0:00:03.6]} 71... Ra1
{[%clk 0:00:15.9]} 72. Rg7+ {[%clk 0:00:03.8]} 72... Kf8 {[%clk 0:00:15.9]} 73.
Rb7 {[%clk 0:00:04.1]} 73... Kg8 {[%clk 0:00:14.9]} 74. Rb8+ {[%clk 0:00:03.8]}
74... Kf7 {[%clk 0:00:15.5]} 75. Rb7+ {[%clk 0:00:04.4]} 75... Kg8 {[%clk
0:00:15.4]} 76. Rb6 {[%clk 0:00:05.3]} 76... Ra7 {[%clk 0:00:10.9]} 77. Rf6
{[%clk 0:00:05.2]} 77... Rf7 {[%clk 0:00:10.2]} 78. Rg6+ {[%clk 0:00:04.3]}
78... Kh8 {[%clk 0:00:10.1]} 79. Re6 {[%clk 0:00:04.6]} 79... Rh7+ {[%clk
0:00:10.4]} 80. Kg6 {[%clk 0:00:05]} 80... Rg7+ {[%clk 0:00:11.3]} 81. Kf6
{[%clk 0:00:05.6]} 81... Ra7 {[%clk 0:00:11.8]} 82. Re8+ {[%clk 0:00:05.6]}
82... Kh7 {[%clk 0:00:11.3]} 83. Kg5 {[%clk 0:00:05.9]} 83... Rg7+ {[%clk
0:00:11.3]} 84. Kh4 {[%clk 0:00:05]} 84... Ra7 {[%clk 0:00:11.8]} 85. Re4 {[%clk
0:00:05.3]} 85... Rb7 {[%clk 0:00:11.9]} 86. Rd4 {[%clk 0:00:05.4]} 86... Rc7
{[%clk 0:00:12.1]} 87. Kg4 {[%clk 0:00:05.9]} 87... Rg7+ {[%clk 0:00:12.1]} 88.
Kf5 {[%clk 0:00:06.2]} 88... Rc7 {[%clk 0:00:13]} 89. Rd5 {[%clk 0:00:06.2]}
89... Kh6 {[%clk 0:00:12.9]} 90. Kg4 {[%clk 0:00:06.3]} 90... Rg7+ {[%clk
0:00:12.9]} 91. Kh4 {[%clk 0:00:06.3]} 91... Ra7 {[%clk 0:00:13.3]} 92. Rd6+
{[%clk 0:00:06.8]} 92... Kh7 {[%clk 0:00:14.2]} 93. Kg5 {[%clk 0:00:07.1]} 93...
Rg7+ {[%clk 0:00:14.2]} 94. Kf6 {[%clk 0:00:07.2]} 94... Ra7 {[%clk 0:00:15.1]}
95. Rd5 {[%clk 0:00:06.1]} 95... Ra6+ {[%clk 0:00:14.9]} 96. Kg5 {[%clk
0:00:06.3]} 96... Ra7 {[%clk 0:00:15.4]} 97. h6 {[%clk 0:00:05.4]} 97... Rb7
{[%clk 0:00:15.7]} 98. Rf5 {[%clk 0:00:05.6]} 98... Re7 {[%clk 0:00:15.8]} 99.
Rf6 {[%clk 0:00:05.5]} 99... Re5+ {[%clk 0:00:15.2]} 100. Kg4 {[%clk 0:00:06]}
100... Ra5 {[%clk 0:00:15.3]} 101. Rb6 {[%clk 0:00:05.7]} 101... Re5 {[%clk
0:00:14.8]} 102. Kf4 {[%clk 0:00:05.8]} 102... Rh5 {[%clk 0:00:14.7]} 103. Rb7+
{[%clk 0:00:06.3]} 103... Kxh6 {[%clk 0:00:14.8]} 104. Rb6+ {[%clk 0:00:05.6]}
1/2-1/2